{"text_format":"1","workbook":"xlsx","n_sheets":7,"sheets":["Guidance Notes","How to complete this form","First time request form Part 1","First time request form Part 2","Bursary additional info Part 3","Provider list","Reasons"],"not_rendered":{"charts":0,"images":2,"macros":1,"external_links":2,"defined_names":16,"comments":0,"pivot_tables":0},"unopened":[],"bounds":{"document_bytes":16777216,"sheet_cells":100000,"rows_first":2000,"rows_last":500,"rows_between":2000,"halvings":0,"cell_chars":16384,"cell_head_chars":4096},"cells_cut":0,"cells_raw":0,"read":"whole","date_system":"1900"}

{"sheet":"Guidance Notes","index":0,"n_rows":72,"n_cols":1,"rows_kept":72,"cut":false,"hidden":false,"merged":[]}
[]
["Guidance notes"]
[]
["We will consider all the information you provide to assess your request for a new loans facility to deliver high quality provision. Please ensure you read this guidance and provide all the information requested for a full assessment to be undertaken."]
[]
["You can request a loans facility for the first time at the 2 performance management points in the funding year. Please refer to advanced learner loans funding and performance management rules 2024 to 2025, Annex 3. "]
[]
["The dates when requests can be made for this review are:  "]
[]
["·         between 6 January 2025 to 20 January 2025"]
[]
["NOTES: We will not accept any forms that are sent outside of the above dates or to a different email .\n              We will disregard any forms used to request growth on existing allocations. This form is for new requests only."]
["  "]
["General information"]
[]
["We will consider your request for a new loan facility and bursary allocation (if applicable) if you have fully completed the request form, funds are available; and if:"]
[]
["·       you currently hold an adult education budget or apprenticeship funding contract/agreement, and have held it since at least the 2022 to 2023 funding year"]
[]
["·       you have been inspected by Ofsted and received an overall grade of good or outstanding"]
[]
["·       you have a good track record"]
[]
["·       you can provide evidence of demand from employers or learners"]
[]
["·       you are not in formal intervention with ESFA and not under additional conditions of funding or additional contractual obligations"]
[]
["·       we are confident that awarding you a new facility is a good use of public funds"]
[]
["New loan facility request form"]
[]
["You must provide information on the form about your loans delivery model, quality assurance arrangements and the qualifications and sector subject areas that you propose to offer. You must also give details of any innovative approaches and describe how the provision will enhance learner choice.  "]
[]
["·       provide details of the organisation submitting the form and amount of loan facility being requested"]
[]
["·       provide a rationale and context for request for a new loan facility"]
[]
["·       provide a monthly profile reflecting when learners will start and when payments will commence; broken down by learner groups 19 to 23 or 24+ (this can be attached separately if it is more convenient)"]
[]
["Additional information in support of your request to enable us to understand the volumes and range of new loan request together with any distinctive or particular sector areas that are being considered will enable us to understand the volume and range of growth required"]
[]
["Delivery Model"]
[]
["·       provide a description of your direct delivery model"]
[]
["·       describe your marketing and recruitment model"]
[]
["Capacity and Capability"]
[]
["·        include details of any resources or infrastructure, staffing resources, premises to support your request"]
[]
["·        confirmation of how your request compliments your organisation’s longer term goals and business strategy"]
[]
["·        evidence of any learner demand; details of learners that you have engaged and believe are committed to start on the programme in 2024 to 2025"]
[]
["Quality Assurance"]
[]
["·       arrangements that demonstrate how the provision will enhance the choice and quality of provision"]
[]
["·       provide details of the delivery patterns to be undertaken, particularly in relation to the intake of starts at set points in the year; roll on roll off programmes"]
[]
["·       what is the planned average length of stay of learners? Please provide a comprehensive and detailed outline for any deviation from the recommended qualification Guided Learning Hours (GLH)"]
[]
["·       declaration that you have received direct centre approval and, where appropriate, direct qualification approval, from the appropriate awarding organisation(s) for the regulated qualifications you propose to offer, using the loans facility. These qualifications must be designated for loans and must be delivered in line with the qualification specification and guidance set out by the awarding organisation"]
[]
["Additional Information "]
[]
["·       any additional information you may wish to present as part of your application"]
[]
["Bursary additional Information"]
[]
["If you are requesting a bursary allocation in addition to a new loan facility, you must set out a rationale and separately must identify the number of learners and the funding required for area costs, learner support and learning support.  "]

{"sheet":"How to complete this form","index":1,"n_rows":30,"n_cols":2,"rows_kept":30,"cut":false,"hidden":false,"merged":[[25,0,27,0],[1,0,1,1],[6,0,6,1],[23,0,23,1],[3,0,3,1]]}
[]
["Please read the advanced learner loans funding and performance management rules 2024 to 2025 for information about requesting a loan facility and bursary for the first time."]
[]
["HOW TO COMPLETE THIS FORM"]
["Macro security","The form contains macros. You must enable macros every time you open the spreadsheet for correct functionality."]
[]
["Advanced Learner Loan First Time Request Form 2024 to 2025"]
["Field","Description"]
["Completion status","This box stays INCOMPLETE until all the yellow boxes are complete. Once all the required yellow boxes are complete, it will change to COMPLETE."]
["Provider name","Use the drop-down box to select your provider name from a list. If your provider name is not listed, please email AllFacility.REQUESTS@education.gov.uk for advice (please quote your UKPRN). NOTE: To request a loan facility for the first time, you must currently hold an adult skills fund or apprenticeship funding contract/agreement, and have held it since at least the 2022 to 2023 funding year."]
["UK Provider Registration Number (UKPRN)","This box will be completed automatically with your UKPRN as it appears on the UK Register of Learning Providers (UKRLP) once provider name is selected."]
["Do you currently hold a facility and bursary contract with the agency?   ","If you already hold a facility and bursary contract with the agency, you do not need to complete this form. This is not a growth request form. Any forms completed for existing contracts will be disregarded."]
["Authority tick box","Please tick to confirm that you have the authority to act on behalf of the applicant organisation named in this form"]
["Total requested loan facility for 2024 to 2025 funding year","Please enter the value of the TOTAL loan facility you wish to request for the full funding year. NOTE –  The maximum loan facility you can apply for is £50,000 for the entire 2024 to 2025 funding year.\nYour request will be automatically split into financial year values, showing you the amount of loan facility available to you for August to March and April to July, if your request is approved."]
["Propose an alternative financial year split","If our financial year split means you may not be able to meet learner demand in either August to March or April to July, please use these boxes to propose an alternative financial year split. The total value of these two boxes must match the total loan facility you have requested."]
["Total requested loan bursary for 2024 to 2025 funding year","Please enter the value of the TOTAL loan bursary funding you wish to request for the full funding year. NOTE – The minimum loan bursary you can apply for is £500. Your request will be automatically split into financial year values, showing you the amount of loan bursary available to you for August to March and April to July, if your request is approved."]
["Propose an alternative financial year split","If our financial year split means you may not be able to meet learner demand in either August to March or April to July, please use these boxes to propose an alternative financial year split. The total value of these two boxes must match the total loan bursary you have requested."]
["Request completed by","Please ensure you enter your:\nName\nPosition in organisation\nEmail address\nDate of request"]
["Submit the completed form ","Once the form shows the completed status, please submit the form via the customer help portal, creating a new enquiry, in which you can attach the form.\n\n"]
[]
[null,"Ensure to title the enquiry - advanced learner loans - first time request\n\nIf you have questions after reading this information, or if there’s anything else you need help with, you can find more support in our customer help centre"]
[null,"Customer help centre (education.gov.uk)"]
[]
["BURSARY ADDITIONAL INFO"]
["Field","Description"]
["Completion status","You must complete this form if you have requested a loan bursary allocation on the first time request form Part 1 (the Completion status will say INCOMPLETE until you complete the required yellow cells).  If you have not requested a loan bursary allocation the Completion status will say NOT REQUIRED and you do not need to complete this tab. "]
[]
[null,"Once all the required yellow boxes are complete, the Completion status will change to COMPLETE. "]
["Total bursary requested for 2024 to 2025","This box is filled in automatically from the total value that you entered on the first time request form Part 1.  "]
["Rationale for bursary increase","Please read the guidance notes and ensure you provide all the information requested"]

{"sheet":"First time request form Part 1","index":2,"n_rows":88,"n_cols":9,"rows_kept":88,"cut":false,"hidden":false,"merged":[[51,0,52,2],[84,0,84,6],[16,3,16,6],[1,6,1,8],[9,3,9,5],[20,2,20,5],[7,0,7,8],[17,3,17,6],[2,6,3,8],[19,1,19,5],[14,3,14,6],[15,3,15,6],[87,0,87,4],[83,0,83,5],[24,3,24,4],[31,1,31,2],[36,0,36,4],[50,0,50,4],[37,0,38,2],[29,1,29,2],[30,1,30,2],[44,1,44,2],[57,1,63,6],[56,1,56,5],[86,0,86,7],[45,1,45,2],[46,1,46,3],[72,1,78,6]]}
[]
[null,null,null,null,null,null,"Completion status"]
[null,null,null,null,null,null,{"$f":"IF(AND(H10=\"✔\",H25=\"✔\",H24=\"✔\",H31=\"✔\",H46=\"✔\",H15=\"✔\",H16=\"✔\",H17=\"✔\",H18=\"✔\",H20=\"✔\",H58=\"✔\",H73=\"✔\",OR('Bursary additional info Part 3'!H3=\"Complete\",'Bursary additional info Part 3'!H3=\"Not required\"),OR('First time request form Part 2'!H3:H4=\"Complete\",'First time request form Part 2'!H3:H4=\"Not Required\")),\"Complete\",\"Incomplete\")","v":"Incomplete"},{"$f":"IF(AND(I8=\"✔\",I15=\"✔\",I21=\"✔\",I38=\"✔\",I46=\"✔\",I51=\"✔\",I52=\"✔\",I53=\"✔\",#REF!=\"✔\",#REF!=\"✔\",OR('Bursary additional info Part 3'!I1=\"Complete\",'Bursary additional info Part 3'!I1=\"Not required\")),\"Complete\",\"Incomplete\")","v":{"$error":"#REF!"}},{"$f":"IF(AND(J8=\"✔\",J15=\"✔\",J21=\"✔\",J38=\"✔\",J46=\"✔\",J51=\"✔\",J52=\"✔\",J53=\"✔\",#REF!=\"✔\",#REF!=\"✔\",OR('Bursary additional info Part 3'!J1=\"Complete\",'Bursary additional info Part 3'!J1=\"Not required\")),\"Complete\",\"Incomplete\")","v":{"$error":"#REF!"}}]
[null,null,null,null,null,null,{"$f":"IF(AND(H9=\"✔\",H24=\"✔\",H30=\"✔\",H45=\"✔\",H14=\"✔\",H15=\"✔\",H16=\"✔\",H17=\"✔\",H19=\"✔\",#REF!=\"✔\",OR('Bursary additional info Part 3'!H2=\"Complete\",'Bursary additional info Part 3'!H2=\"Not required\")),\"Complete\",\"Incomplete\")","v":{"$error":"#REF!"}},{"$f":"IF(AND(I9=\"✔\",I16=\"✔\",I22=\"✔\",I39=\"✔\",I51=\"✔\",I52=\"✔\",I53=\"✔\",I54=\"✔\",#REF!=\"✔\",#REF!=\"✔\",OR('Bursary additional info Part 3'!I2=\"Complete\",'Bursary additional info Part 3'!I2=\"Not required\")),\"Complete\",\"Incomplete\")","v":{"$error":"#REF!"}},{"$f":"IF(AND(J9=\"✔\",J16=\"✔\",J22=\"✔\",J39=\"✔\",J51=\"✔\",J52=\"✔\",J53=\"✔\",J54=\"✔\",#REF!=\"✔\",#REF!=\"✔\",OR('Bursary additional info Part 3'!J2=\"Complete\",'Bursary additional info Part 3'!J2=\"Not required\")),\"Complete\",\"Incomplete\")","v":{"$error":"#REF!"}}]
[]
["Advanced learner loan facility and bursary: First time request form Part 1 for 2024 to 2025 funding year"]
[]
["Please read How to complete this form and Guidance Notes and then complete the appropriate yellow cells."]
[]
[null,null,"Provider name",null,null,null,null,{"$f":"IF(ISBLANK(D10), \"✖\", \"✔\")","v":"✖"}]
[]
[null,null,"UK Provider Registration Number (UKPRN)",{"$f":"IFERROR(VLOOKUP(D10,'Provider list'!A:B,2,FALSE),\"\")","v":""},{"$f":"IFERROR(VLOOKUP(D10,'Provider list'!A2:B990,3,FALSE),\"\")","v":""}]
[]
["Request completed by"]
[null,null,"Name",null,null,null,null,{"$f":"IF(ISBLANK(D15), \"✖\", \"✔\")","v":"✖"}]
[null,null,"Position in organisation",null,null,null,null,{"$f":"IF(ISBLANK(D16), \"✖\", \"✔\")","v":"✖"}]
[null,null,"Email address",null,null,null,null,{"$f":"IF(ISBLANK(D17), \"✖\", \"✔\")","v":"✖"}]
[null,null,"Date of request",null,null,null,null,{"$f":"IF(ISBLANK(D18), \"✖\", \"✔\")","v":"✖"}]
[]
[null,"Please tick to confirm that you have the authority to act on behalf of the applicant organisation named in this form",null,null,null,null,true,{"$f":"IF(G20=FALSE, \"✖\", \"✔\")","v":"✔"}]
[]
[]
["Growth Request",null,null,null,{"$f":"IF(OR(E24=\"No\",E24=\"\"),\"\",\"This form is for new requests only\")","v":""}]
[null,null,null,"Do you currently hold a facility and bursary contract with the agency?      ",null,null,null,{"$f":"IF(OR(E24=\"\",E24=\"Yes\"),\"✖\",\"✔\")","v":"✖"}]
[null,null,"Please use the drop down box  ",null,null,null,null,{"$f":"IF(ISBLANK(D25), \"✖\", \"✔\")","v":"✖"}]
[]
["Total requested loan facility for 2024 to 2025 funding year"]
["Please complete this section if you would like to request a loan facility for the first time. "]
[]
[null,"TOTAL",null,"August to March ","April to July"]
["Value £",null,null,{"$f":"IF(B31=\"\",\"\",ROUND(B31*63.17%,0))","v":""},{"$f":"IF(B31<>\"\",ROUND(B31-D31,0),\"\")","v":""},null,null,{"$f":"IF(AND(B31>0,OR(D25=\"New facility\",D25=\"New facility and bursary\")),\"✔\",(IF(AND(D25=\"New Bursary\",OR(B31=\"\",B31=0)),\"✔\",\"✖\")))","v":"✖"}]
["Volume of starts"]
[]
["To note: "]
["The maximum loan facility you can apply for is £50,000 for the entire 2024 to 2025 funding year"]
[]
["The ESFA will consider proposals for an alternative financial year split in line with the budget, which you can enter below.  We cannot guarantee that proposals will be accepted."]
["Proposed alternative financial year split  ",null,null,"August to March ","April to July"]
[null,null,null,null,null,{"$f":"IF(AND(D39=\"\",E39=\"\"),\"\",IF(D39+E39<>B31,\"Your proposed split does not match the facility you've requested.\",\"\"))","v":""}]
[]
[]
["Total requested loan bursary for 2024 to 2025 funding year"]
["Please complete this section if you would like to request a loan bursary for the first time."]
[]
[null,"TOTAL",null,"August to March ","April to July"]
[null,null,null,{"$f":"IF(B46=\"\",\"\",ROUND(B46*63.17%,0))","v":""},{"$f":"IF(B46<>\"\",ROUND(B46-D46,0),\"\")","v":""},null,null,{"$f":"IF(AND(B46>0,OR(D25=\"New Bursary\",D25=\"New facility and bursary\")),\"✔\",(IF(D25=\"New facility\",\"✔\",\"✖\")))","v":"✖"}]
[null,{"$f":"IF(OR(D25=\"Change facility only\",B46=\"\",B46=0,'Bursary additional info Part 3'!H3=\"Complete\"),\"\",\"Please complete the bursary additional info tab\")","v":""}]
["To note: "]
["The minimum loan bursary you can apply for is £500. Your bursary allocation should be proportionate to the size \nof your loan facility. "]
[]
["The ESFA will consider proposals for an alternative financial year split in line with the budget, which you can enter below.  We cannot guarantee that proposals will be accepted."]
["Proposed alternative financial year split  ",null,null,"August to March ","April to July"]
[null,null,null,null,null,{"$f":"IF(AND(D53=\"\",E53=\"\"),\"\",IF(D53+E53<>B46,\"Your proposed split does not match the bursary you've requested.\",\"\"))","v":""}]
[]
["Supporting information"]
[]
[null,"Please provide the context and rationale for your request."]
[null,null,null,null,null,null,null,{"$f":"IF(AND(OR($D$25=\"New facility\",$D$25=\"New facility and bursary\"),ISBLANK(B58)), \"✖\", \"✔\")","v":"✔"}]
[]
[]
[]
[]
[]
[]
[]
[]
[null,"Please provide the following information"]
[]
[null,"l qualifications to be delivered including  sector subject areas and levels"]
[null,"l   learner groups targeted:  to include proportion(%) of starts 19-23, or 24+, and  details of learners’ employment status"]
[]
[]
[null,null,null,null,null,null,null,{"$f":"IF(AND(OR($D$25=\"New facility\",$D$25=\"New facility and bursary\"),ISBLANK(B73)), \"✖\", \"✔\")","v":"✔"}]
[]
[]
[]
[]
[]
[]
[]
[]
[]
[]
["Once form shows as COMPLETE - please raise an enquiry via the customer help portal, and attach completed form to the enquiry.\n\nTitle the enquiry - Advanced learner loans - First time request"]
["Customer help portal (education.gov.uk)"]
[]
["For more information on the customer help portal, you can find support in our customer help centre"]
["Customer help centre (education.gov.uk)"]

{"sheet":"First time request form Part 2","index":3,"n_rows":53,"n_cols":8,"rows_kept":53,"cut":false,"hidden":false,"merged":[[53,1,62,7],[15,1,24,7],[27,1,36,7],[2,1,2,6],[2,7,3,7],[7,4,7,7],[40,1,49,7]]}
[]
[null,null,null,null,null,null,null,"Completion status"]
[null,null,null,null,null,null,null,{"$f":"IFERROR(IF((D10-_xlfn.IFNA(VLOOKUP('First time request form Part 1'!D12,'Provider list'!A:B,1,FALSE),0))<1,\"NOT REQUIRED\",IF(OR(ISBLANK(B16),ISBLANK(B28),ISBLANK(B41),ISBLANK(B28)),\"INCOMPLETE\",\"COMPLETE\")),\"NOT REQUIRED\")","v":"NOT REQUIRED"}]
[]
[]
[null,"Advanced learner loan facility: First time request form Part 2 for 2024 to 2025 funding year"]
[]
[null,"Please complete ALL of the yellow cells below. "]
[]
[null,"Total facility requested for 2024 to 2025",null,{"$f":"IF('First time request form Part 1'!B31=\"\",\"\",'First time request form Part 1'!B31)","v":""},"  (This is the value you entered on Part 1 of your change request form.)"]
[]
[null,"Supporting Information "]
[null,"To include evidence of: "]
[]
[null,"Delivery model"]
[]
[]
[]
[]
[]
[]
[]
[]
[]
[]
[]
[null,"Capacity and capability"]
[]
[]
[]
[]
[]
[]
["Total bursary requested for 2016 to 2017"]
[]
[]
[]
[]
[]
[null,"Quality assurance"]
[]
[]
[]
[]
[]
[]
[]
[]
[]
[]
[]
[]
[null,"Additional information"]

{"sheet":"Bursary additional info Part 3","index":4,"n_rows":26,"n_cols":8,"rows_kept":26,"cut":false,"hidden":false,"merged":[[26,1,35,7],[2,7,3,7],[2,1,2,6],[7,4,7,7],[12,1,13,7],[14,3,14,4]]}
[]
[null,null,null,null,null,null,null,"Completion status"]
[null,null,null,null,null,null,null,{"$f":"IF(OR(D10=0,D10=\"\"),\"NOT REQUIRED\",IF(OR(,ISBLANK(E23),ISBLANK(D23),ISBLANK(E21),ISBLANK(D21),ISBLANK(E19),ISBLANK(D19),ISBLANK(B27)),\"INCOMPLETE\",\"COMPLETE\"))","v":"NOT REQUIRED"}]
[]
[]
[null,"Advanced learner loans bursary first time request"]
[]
[null,"Please complete ALL of the yellow cells below. "]
[]
[null,"Total bursary requested for 2024 to 2025",null,{"$f":"IF('First time request form Part 1'!B46=\"\",\"\",'First time request form Part 1'!B46)","v":""},"  (This is the value you entered on Part 1 of your change request form.)"]
[]
[]
[null,"You must separately identify the number of learners and the funding required for area cost uplift, learner support and learning support."]
[]
[null,null,null,"2024 to 2025"]
[]
[null,null,null,"Number of learners","Bursary earnings (£)"]
[]
[null,"Area cost uplift"]
[]
[null,"Learner support"]
[]
[null,"Learning support"]
[]
[null,"Rationale for bursary request"]
[null,"Please explain the rationale for your request in the box below."]

{"sheet":"Provider list","index":5,"n_rows":1026,"n_cols":2,"rows_kept":1026,"cut":false,"hidden":true,"merged":[]}
["Provider Name","UKPRN"]
["100% EFFECTIVE LIMITED",10029265]
["1ST2 ACHIEVE TRAINING LIMITED",10031126]
["2 START LIMITED",10028172]
["8POINT8 TRAINING LIMITED",10057068]
["A S TRAINING (INTERNATIONAL) LIMITED",10037198]
["ABBEYDALE VETLINK VETERINARY TRAINING LIMITED",10028269]
["ABM TRAINING (UK) LTD",10029426]
["ACADEMY FOR PROJECT MANAGEMENT LTD",10053076]
["ACADEMY OF PLAY AND CHILD PSYCHOTHERAPY LIMITED",10067447]
["ACADEMY TRAINING LTD",10046146]
["ACCESS TRAINING (EAST MIDLANDS) LTD",10010584]
["ACCESS TRAINING LIMITED",10009059]
["ACCIPIO LIMITED",10058012]
["ACCOUNTANCY LEARNING LTD",10042735]
["ACE TRAINING AND CONSULTANCY LIMITED",10034055]
["ACHIEVEMENT TRAINING & SKILLS LTD",10053951]
["ACHIEVING EXCELLENCE UK LTD",10023357]
["ACHIEVING FOR CHILDREN COMMUNITY INTEREST COMPANY",10047071]
["ACTIV FIRST LIMITED",10034423]
["ADA NATIONAL COLLEGE FOR DIGITAL SKILLS",10057981]
["ADALTA DEVELOPMENT LTD",10043865]
["AGINCARE GROUP LIMITED",10048865]
["AIRE VOCATIONAL TRAINING LIMITED",10033950]
["AJ BELL BUSINESS SOLUTIONS LIMITED",10084400]
["AJ'S TRAINING LTD",10042644]
["AKR GROWTH VENTURES LTD",10089078]
["ALAN HESTER ASSOCIATES LIMITED",10015933]
["ALDRIDGE EDUCATION",10058195]
["ALL DIMENSION LIMITED",10032555]
["ALLIANCE LEARNING",10000238]
["ALPHABET TRAINING GROUP LTD.",10049431]
["ALTHAUS DIGITAL LIMITED",10031131]
["ALTRAD BABCOCK LIMITED",10004399]
["ALWAYS CONSULT LTD",10034128]
["ANDERSON STOCKLEY ACCREDITED TRAINING LTD",10023918]
["ANGLIA RUSKIN UNIVERSITY HIGHER EDUCATION CORPORATION",10000291]
["ANGLO AMERICAN TECHNICAL & SUSTAINABILITY SERVICES LTD",10088633]
["ANS ACADEMY LIMITED",10042795]
["APA PROCUREMENT TRAINING LIMITED",10064562]
["APPRENTICE TEAM LTD",10043793]
["APPRENTICESHIP LEARNING SOLUTIONS LIMITED",10000105]
["APPRENTIFY LIMITED",10063272]
["APPRIS CHARITY LIMITED",10000848]
["APPROVED TRAINING LIMITED",10056863]
["ARDEN UNIVERSITY LIMITED",10005451]
["ARK SCHOOLS",10044534]
["ARMONIA LIMITED",10019236]
["ART PROVIDERS LTD",10068438]
["ASPENS-SERVICES LIMITED",10065752]
["ASPIRATION TRAINING LIMITED",10000421]
["ASPIRATIONS ACADEMIES TRUST",10059468]
["ASPIRE DEVELOPMENT (UK) LTD",10054055]
["ASPIRE PROCUREMENT TRAINING LTD",10063268]
["ASPIRE TRAINING SOLUTIONS (UK) LIMITED",10044252]
["ASSIST KNOWLEDGE DEVELOPMENT LIMITED",10049099]
["ASSOCIATED NEIGHBOUR TRAINING LIMITED",10057050]
["ASTON UNIVERSITY",10007759]
["AURELIA TRAINING LIMITED",10000452]
["AUTO-ASSESS LIMITED",10065596]
["AVANT PARTNERSHIP LIMITED",10022513]
["AVEREE LTD",10036194]
["AWC TRAINING LTD",10033536]
["AWE PLC",10008081]
["AXIA SOLUTIONS LIMITED",10000470]
["AZESTA LIMITED",10003979]
["BABCOCK TRAINING LIMITED",10003161]
["BABINGTON BUSINESS COLLEGE LIMITED",10000494]
["BACK 2 WORK COMPLETE TRAINING LIMITED",10033156]
["BAE SYSTEMS PLC",10000501]
["BALTIC TRAINING SERVICES LIMITED",10019026]
["BANHAM ACADEMY LIMITED",10046413]
["BARKING, HAVERING AND REDBRIDGE UNIVERSITY HOSPITALS NHS TRUST",10063578]
["BARNARDO'S",10000532]
["BASEGREEN ACADEMY LTD",10085759]
["BASINGSTOKE ITEC LIMITED",10000561]
["BAUER RADIO LIMITED",10002230]
["BELLEVUE EDUCATION INTERNATIONAL LIMITED",10053301]
["BENSON-SMITH LIMITED",10056494]
["BESPOKE PROFESSIONAL DEVELOPMENT AND TRAINING LIMITED",10045955]
["BEST PRACTICE NETWORK LIMITED",10019464]
["BIG CREATIVE TRAINING LTD",10002073]
["BIRKBECK COLLEGE",10007760]
["BIRMINGHAM CITY UNIVERSITY",10007140]
["BIRMINGHAM COMMUNITY HEALTHCARE NHS FOUNDATION TRUST",10039958]
["BIRMINGHAM ELECTRICAL TRAINING LTD",10000715]
["BISHOP FLEMING LLP",10082311]
["BISHOP GROSSETESTE UNIVERSITY",10007811]
["BLUE LION TRAINING ACADEMY LIMITED",10065784]
["BLUE SCREEN IT LIMITED",10024790]
["BLUE SKY ASSESSING & CONSULTANCY LTD",10046850]
["BLYTH HARBOUR COMMISSIONERS",10023815]
["BMS PROGRESS LLP",10065872]
["BOOM TRAINING LIMITED",10044607]
["BOSCH AUTOMOTIVE SERVICE SOLUTIONS LTD",10042884]
["BOTTLE GREEN TRAINING LIMITED",10037391]
["BOURNEMOUTH UNIVERSITY",10000824]
["BPIF TRAINING LIMITED",10034212]
["BPP ACTUARIAL EDUCATION LIMITED",10061524]
["BPP PROFESSIONAL EDUCATION LIMITED",10029952]
["BPP UNIVERSITY LIMITED",10031982]
["BRADFORD CITY COUNCIL",10000850]
["BRAGD LLP",10040391]
["BRIGHT BEES NURSERY LTD",10066498]
["BRIGHT DIRECTION TRAINING LIMITED",10033710]
["BRIGHTER BEGINNINGS DAY NURSERY LIMITED",10034931]
["BRISTOL CITY COUNCIL",10000896]
["BRITISH ARMY",10033440]
["BRITISH GAS SERVICES LIMITED",10000915]
["BRITISH PRINTING INDUSTRIES FEDERATION LTD",10000929]
["BRS EDUCATION LIMITED",10048409]
["BRUNEL UNIVERSITY LONDON",10000961]
["BUCKINGHAMSHIRE NEW UNIVERSITY",10000975]
["BUSY BEES EDUCATION & TRAINING LIMITED",10085899]
["BUTTERCUPS TRAINING LIMITED",10013570]
["BYGROVE PRIMARY SCHOOL",10063978]
["CADENT GAS LIMITED",10061438]
["CALDERDALE AND HUDDERSFIELD NHS FOUNDATION TRUST",10043062]
["CALEX UK LTD",10019065]
["CALL OF THE WILD (DEVELOPMENT) LIMITED",10026134]
["CAMBRIDGE MARKETING COLLEGE LIMITED",10001113]
["CAMBRIDGE PROFESSIONAL ACADEMY LIMITED",10001115]
["CAMBRIDGE SPARK LIMITED",10063309]
["CAMBRIDGESHIRE COUNTY COUNCIL",10001123]
["CANTERBURY CHRIST CHURCH UNIVERSITY",10001143]
["CAPELLA ASSOCIATES LTD",10024015]
["CAPITA PLC",10001149]
["CAPITAL 4 TRAINING LIMITED",10038922]
["CAPTIVA LEARNING LIMITED",10030870]
["CARESHIELD LIMITED",10045389]
["CAROLINE PAULING",10039527]
["CAUNTON ENGINEERING LIMITED",10062100]
["CELLAR TAPES UK LTD",10085130]
["CENTRAL VETERINARY SERVICES LIMITED",10028380]
["CERT C.I.C.",10001585]
["CHAMELEON VOCATIONAL TRAINING LIMITED",10037213]
["CHANGE BOARD HOLDINGS LIMITED",10084912]
["CHANNEL TRAINING LIMITED",10037203]
["CHANNICOOL TRAINING SERVICES LIMITED",10038874]
["CHARTERED INSTITUTION OF RAILWAY OPERATORS",10040914]
["CHELSEA AND WESTMINSTER HOSPITAL NHS FOUNDATION TRUST",10030534]
["CHERITH SIMMONS LEARNING & DEVELOPMENT LLP",10045070]
["CHEYNES TRAINING LIMITED",10003354]
["CHILDBASE PARTNERSHIP LIMITED",10084678]
["CHOICE TRAINING LTD.",10037909]
["CHRYSOS H.R. SOLUTIONS LIMITED",10024320]
["CILEX LAW SCHOOL LIMITED",10003252]
["CIPFA BUSINESS LIMITED",10063574]
["CIPHER MEDICAL CONSULTANCY LIMITED",10088339]
["CIPS CORPORATE SERVICES LIMITED",10065628]
["CITB",10001436]
["CITRUS TRAINING LIMITED",10013516]
["CITY GATEWAY",10019383]
["CITY SKILLS LIMITED",10065422]
["CITY ST GEORGE'S, UNIVERSITY OF LONDON",10001478]
["CLAAS UK LIMITED",10087112]
["CLARKSON EVANS TRAINING LIMITED",10025390]
["CLAUDIUS CONSULTING LIMITED",10021835]
["CLEAR QUALITY LIMITED",10083283]
["CLEARLINE RECRUITMENT LTD",10066561]
["CLIFFE HOUSE DAY NURSERIES LIMITED",10083467]
["CLIFFORD COLLEGE LTD",10055883]
["CNET TRAINING LIMITED",10001079]
["COGENT SSC LIMITED",10001531]
["COLEG CAMBRIA",10041295]
["COLLINGE & CO TRAINING LIMITED",10000285]
["COMMON COUNCIL OF THE CITY OF LONDON",10008915]
["COMMUNITY FIRST ACADEMY TRUST",10054033]
["COMMUNITY MATTERS LTD.",10088215]
["COMPLETE LEAN SOLUTIONS LIMITED",10055054]
["CONSALIA LIMITED",10061865]
["CONSTRUCT TRAINING SERVICES LIMITED",10091470]
["CONSTRUCTION AND PLANT ASSESSMENTS LTD",10037751]
["CONTRACTING SERVICES (EDUCATION AND SKILLS) LIMITED",10056737]
["COOL BLUE COLLEGE LTD",10004370]
["CORDIE LTD",10044008]
["CORNDEL LIMITED",10061407]
["CORNWALL MARINE NETWORK LIMITED",10033408]
["COVENTRY AND WARWICKSHIRE CHAMBERS OF COMMERCE TRAINING LIMITED",10001309]
["COVENTRY CITY COUNCIL",10001723]
["CQM TRAINING AND CONSULTANCY LIMITED",10025961]
["CRANFIELD UNIVERSITY",10007822]
["CREATIVE PROCESS DIGITAL LTD",10047679]
["CREATIVE SPORT & LEISURE LTD",10054819]
["CRISPIN SCHOOL ACADEMY",10034178]
["CROSBY MANAGEMENT TRAINING LTD",10034952]
["CROWN VOCATIONAL TRAINING LIMITED",10037798]
["CROYDON LONDON BOROUGH COUNCIL",10003989]
["CROYDONSAM TRAINING LTD",10038292]
["CSA (SERVICES) LTD",10063438]
["CSM CONSULTING LIMITED",10001786]
["CSR SCIENTIFIC TRAINING LIMITED",10034416]
["CT SKILLS LIMITED",10001174]
["CTSW SKILLS LTD",10081187]
["CU APPRENTICESHIPS (BETTER FUTURES) LIMITED",10091009]
["CVP CONSULT LTD",10082269]
["CVS (UK) LIMITED",10045754]
["D & A TRAINING & ASSESSMENT LTD",10063666]
["D.T.K. BUSINESS SERVICES LIMITED",10013118]
["DAMAR LIMITED",10001831]
["DARLINGTON BOROUGH COUNCIL",10001848]
["DAVE SHURMER",10063515]
["DAVID NIEPER LIMITED",10082111]
["DAVIDSON TRAINING UK LIMITED",10001869]
["DAVIES LEARNING SOLUTIONS LIMITED",10046149]
["DAWN HODGE ASSOCIATES LIMITED",10022117]
["DE MONTFORT UNIVERSITY",10001883]
["DECIDEBLOOM LIMITED",10049678]
["DECODED LIMITED",10065767]
["DEERE APPRENTICESHIPS LTD",10034887]
["DENTAL PROFESSIONAL EDUCATION LTD.",10063911]
["DENTRAIN PROFESSIONALS LTD",10035789]
["DERBY BUSINESS COLLEGE LIMITED",10005109]
["DERWENT TRAINING ASSOCIATION",10009389]
["DEXTERS LONDON LIMITED",10084602]
["DIAMOND PEOPLE (NE) LIMITED",10089638]
["DIANTHAS LTD",10027146]
["DICK WHITE REFERRALS LIMITED",10063954]
["DIDAC LIMITED",10001967]
["DIGITAL NATIVE (UK) LIMITED",10052858]
["DIGITAL PENINSULA NETWORK LIMITED",10026332]
["DIGITAL TELECOMS NETWORK ACADEMY LIMITED",10001078]
["DONCASTER ROTHERHAM AND DISTRICT MOTOR TRADES GROUP TRAINING ASSOCIATION LIMITED",10002009]
["DORSET SOFTWARE SERVICES LIMITED",10089073]
["DOVE HOUSE ACADEMY",10034865]
["DOVE NEST MANAGEMENT TRAINING AND DEVELOPMENT LIMITED",10023085]
["DRL SERVICES LTD",10062212]
["DYNAMIC TRAINING UK LIMITED",10031984]
["DYNAMO HEALTHCARE TRAINING LTD",10041239]
["DYSON TECHNICAL TRAINING LIMITED",10067355]
["E.J.MARKHAM & SON LIMITED",10062166]
["E.QUALITY TRAINING LIMITED",10002085]
["EAS MECHANICAL LIMITED",10035881]
["EAST LINDSEY INFORMATION TECHNOLOGY CENTRE",10002471]
["EAST SUFFOLK AND NORTH ESSEX NHS FOUNDATION TRUST",10082328]
["EAST SUSSEX COUNTY COUNCIL",10002131]
["EASTERN REGION ROOF TRAINING GROUP LIMITED",10002140]
["EBOR ACADEMY TRUST",10061219]
["E-CAREERS EDUCATION LIMITED",10033482]
["EDGE HILL UNIVERSITY",10007823]
["EDINBURGH NAPIER UNIVERSITY",10007772]
["EDUCATION AND SKILLS TRAINING & DEVELOPMENT LIMITED",10052638]
["EEF LIMITED",10025384]
["EGLANTINE CATERING LIMITED",10020019]
["ELECTRICAL TESTING LIMITED",10056912]
["ELEVATED KNOWLEDGE LTD",10057175]
["ELEVATION ACADEMY LIMITED",10087117]
["ELIESHA TRAINING LIMITED",10026843]
["EMA TRAINING LIMITED",10041891]
["EMPENTIS LIMITED",10065933]
["ENGINEERING TRUST TRAINING LIMITED",10003402]
["ENSIS SOLUTIONS LIMITED",10046692]
["E-QUALITAS PROFESSIONAL SERVICES LIMITED",10046623]
["EQUALS TRAINING LIMITED",10061466]
["ERNST & YOUNG LLP",10056749]
["ESCALLA TS LTD",10035270]
["ESSEX & THAMES EDUCATION",10092263]
["ESSEX PARTNERSHIP UNIVERSITY NHS FOUNDATION TRUST",10023516]
["ESSITY UK LIMITED",10090820]
["ESTIO TRAINING LIMITED",10048177]
["EXCEED ACADEMIES TRUST",10064216]
["EXCEED TRAINING COMPANY LIMITED",10028919]
["EXCEL TRAINING LIMITED",10037723]
["EXCELLENCE-SOLUTIONS LIMITED",10043389]
["EXERTIS (UK) LTD",10065437]
["EXTEL LIMITED",10032788]
["FASHION - ENTER LTD",10026238]
["FE BUSINESS LIMITED",10052863]
["FIERI LEADERSHIP AND DEVELOPMENT LTD",10089666]
["FINNING (UK) LTD.",10002463]
["FIREBRAND TRAINING LIMITED",10010335]
["FIRST AVENUE TRAINING LIMITED",10021068]
["FIRST FOR APPRENTICESHIPS LIMITED",10061442]
["FIRST INTUITION BRISTOL LIMITED",10062042]
["FIRST INTUITION CAMBRIDGE LIMITED",10030926]
["FIRST INTUITION CHELMSFORD LIMITED",10042003]
["FIRST INTUITION LEEDS LIMITED",10056050]
["FIRST INTUITION LIMITED",10056738]
["FIRST INTUITION MAIDSTONE LIMITED",10034969]
["FIRST INTUITION READING LIMITED",10040718]
["FIRST RUNG LIMITED",10002483]
["FIT UK TRAINING & EDUCATION LTD",10031876]
["FITCH LEARNING LIMITED",10018277]
["FLM TRAINING LTD",10040440]
["FLOORSKILLS LIMITED",10044025]
["FLOORTRAIN (GB) LIMITED",10027599]
["FOCUS TRAINING (SW) LIMITED",10026590]
["FORESTRY COMMISSION",10012863]
["FORUM FOR SUSTAINABLE NEW VENTURE",10084420]
["FOUNDERS & CODERS C.I.C.",10085696]
["FOUR CS MAT",10058314]
["FRANCESCO GROUP (HOLDINGS) LIMITED",10002565]
["F-TEC FORKLIFT TRAINING ENGINEERING CENTRE LTD",10061808]
["FUEL LEARNING LIMITED",10058111]
["FULLAGAR CONSTRUCTION SKILLS CENTRE LTD",10022493]
["FUNCTIONAL SKILLS UK LIMITED",10047090]
["FUTURE ACADEMIES",10043978]
["GEM PARTNERSHIP LIMITED",10065710]
["GENII ENGINEERING & TECHNOLOGY TRAINING LIMITED",10002655]
["GENIUS SOFTWARE SOLUTIONS LIMITED",10038872]
["GFM EDUCATION",10059407]
["GI GROUP RECRUITMENT LTD",10039882]
["GINGER NUT MEDIA LIMITED",10048380]
["GLAS BUSINESS SOLUTIONS LIMITED",10031028]
["GLASS & FENESTRATION TRAINING SOLUTIONS LTD",10040392]
["GLOBAL SKILLS TRAINING LTD",10023829]
["GLOUCESTERSHIRE ENGINEERING TRAINING LIMITED",10002704]
["GLOUCESTERSHIRE ENTERPRISE LIMITED",10001041]
["GODDARD VETERINARY GROUP LIMITED",10044886]
["GOVIA THAMESLINK RAILWAY LIMITED",10056776]
["GOWER COLLEGE SWANSEA",10030408]
["GREATER MANCHESTER COMBINED AUTHORITY",10052576]
["GREENDALE LIMITED",10021650]
["GREENLIGHT TRAINING LIMITED",10080843]
["GREY SEAL ACADEMY LIMITED",10033815]
["GROUP HORIZON LIMITED",10030502]
["GTG TRAINING LIMITED",10030838]
["GUY'S AND ST THOMAS' NHS FOUNDATION TRUST",10011147]
["HADDON TRAINING LIMITED",10002841]
["HAHA TRAINING LTD",10037678]
["HALIFAX OPPORTUNITIES TRUST",10013225]
["HALLS OF IVY BEAUTY ACADEMY LIMITED",10030099]
["HAMPSHIRE COUNTY COUNCIL",10002872]
["HAMPSHIRE HOSPITALS NHS FOUNDATION TRUST",10037685]
["HAPPY COMPUTERS LIMITED",10002888]
["HARPER ADAMS UNIVERSITY",10040812]
["HARPER CRAVEN ASSOCIATES LIMITED",10029337]
["HARRIET ELLIS TRAINING SOLUTIONS LIMITED",10032857]
["HARRIS FEDERATION",10055126]
["HAYS TRAVEL LIMITED",10030120]
["HCF CATCH LIMITED",10009661]
["HCRG CARE SERVICES LTD",10037401]
["HEALTH SCIENCES UNIVERSITY",10000163]
["HEART OF ENGLAND TRAINING LIMITED",10002976]
["HEREFORDSHIRE AND WORCESTERSHIRE GROUP TRAINING ASSOCIATION LIMITED",10003026]
["HERITAGE SKILLS ACADEMY LIMITED",10063769]
["HERTFORDSHIRE COUNTY COUNCIL",10003039]
["HIDDEN HEARING LIMITED",10065724]
["HIGH RIDGE TRAINING LTD",10048229]
["HIS MAJESTY'S REVENUE AND CUSTOMS (HMRC)",10012772]
["HOLLAND & BARRETT RETAIL LIMITED",10081176]
["HOLY FAMILY CATHOLIC PRIMARY SCHOOL - PART OF THE LEARNING FEDERATION PARTNERSHIP OF SCHOOLS",10045987]
["HOMESERVE MEMBERSHIP LIMITED",10082134]
["HTFT PARTNERSHIP LIMITED",10055777]
["HTP APPRENTICESHIP COLLEGE LTD",10003162]
["HUDDERSFIELD TEXTILE TRAINING LIMITED",10003190]
["HUMBERSIDE ENGINEERING TRAINING ASSOCIATION LIMITED",10003206]
["HWS RESTAURANTS LIMITED",10043575]
["HYBRID TECHNICAL SERVICES LIMITED",10026620]
["IBM UNITED KINGDOM LIMITED",10003234]
["IGNITE SPORT UK LIMITED",10029736]
["IGNITE TRAINING LTD",10048827]
["IMPACT FUTURES TRAINING LIMITED",10018916]
["IMPACT LEARNING & DATA SOLUTIONS LIMITED",10022627]
["INCLUSIVE TRAINING SOLUTIONS LTD",10027693]
["IN-COMM TRAINING AND BUSINESS SERVICES LIMITED",10003280]
["INSPIRE MIDDLESEX COLLEGE LTD",10038183]
["INSPIRING FUTURES THROUGH LEARNING",10059102]
["INSPIRO LEARNING LIMITED",10037348]
["INSTEP UK LIMITED",10003317]
["INTEC BUSINESS COLLEGES LIMITED",10003347]
["INTELLIGENCIA TRAINING LIMITED",10062322]
["INTERTRAIN UK LTD.",10032931]
["INTROTRAIN & FORUM LIMITED",10003380]
["INVOLVE SELECTION LIMITED",10081982]
["IODA LIMITED",10062064]
["ISALES ACADEMY LIMITED",10063869]
["ITEC NORTH EAST LIMITED",10003430]
["ITEC TRAINING SOLUTIONS LTD",10001156]
["J & E TRAINING CONSULTANTS LIMITED",10003440]
["J G W TRAINING LIMITED",10031399]
["JAMES EDUCATION LTD",10052618]
["JARROLD & SONS LIMITED",10003455]
["JBC SKILLS TRAINING LIMITED",10019314]
["JC TRAINING & CONSULTANCY LTD",10056657]
["JET2.COM LIMITED",10063991]
["JGA LIMITED",10006710]
["JLMS MANAGEMENT LTD.",10054679]
["JOHN HENRY GROUP LIMITED",10092011]
["JS CONSULT LIMITED",10048831]
["JTL",10003526]
["JUICE TALENT DEVELOPMENT LIMITED",10063435]
["JULIE MAYCOCK",10061312]
["JUST IT TRAINING LIMITED",10034940]
["KAPLAN FINANCIAL LIMITED",10000446]
["KEIBRA LTD",10088861]
["KENT SCHOOL OF VETERINARY NURSING LIMITED",10066553]
["KIDS PLANET DAY NURSERIES LIMITED",10066783]
["KINGDOM ACADEMY LIMITED",10031127]
["KINGDOM COLLEGE LIMITED",10083451]
["KINGSTON UNIVERSITY",10003678]
["KINGSTON UPON HULL CITY COUNCIL",10003198]
["KIWI & YUZU LTD",10046679]
["KLEEK APPRENTICESHIPS LIMITED",10005642]
["KMF PRECISION SHEET METAL LIMITED",10025969]
["KNOWLEDGEBRIEF LIMITED",10038982]
["KRESTON REEVES LLP",10061591]
["KWIK-FIT (GB) LIMITED",10003724]
["KYP KNOW YOUR POTENTIAL CONSULTANCY LTD",10032315]
["L.I.T.S. LIMITED",10003728]
["LAGAT LIMITED",10003744]
["LANCASHIRE COMBINED FIRE AUTHORITY",10012965]
["LANCASHIRE TEACHING HOSPITALS NHS FOUNDATION TRUST",10011018]
["LANCASTER TRAINING SERVICES LIMITED",10003771]
["LANGLEY WATERPROOFING SYSTEMS LIMITED",10083708]
["LAVENDER INTERNATIONAL NDT CONSULTANCY SERVICES LIMITED",10009356]
["LDN APPRENTICESHIPS LTD",10031971]
["LEAGUE FOOTBALL EDUCATION",10003808]
["LEAN ENABLED GROUP LTD",10088153]
["LEARNING FOR EXCELLENCE LTD",10065578]
["LEARNING FOR FUTURES LTD",10028279]
["LEARNING SKILLS PARTNERSHIP LTD",10032740]
["LEARNMORE NETWORK LIMITED",10045077]
["LEARNMORE SKILLS LTD",10004720]
["LEEDS BECKETT UNIVERSITY",10003861]
["LEEDS CITY COUNCIL",10003853]
["LEEDS TEACHING HOSPITALS NATIONAL HEALTH SERVICE TRUST",10011138]
["LEEDS TRINITY UNIVERSITY",10003863]
["LEICESTERSHIRE COUNTY COUNCIL",10003872]
["LEIGH ACADEMIES TRUST",10052832]
["LESLIE FRANCES (HAIR FASHIONS) LIMITED",10003889]
["LET ME PLAY LIMITED",10040664]
["LEWTAY TRAINING LIMITED",10043533]
["LI EUROPE LTD",10090214]
["LIBF LIMITED",10089591]
["LIFETIME TRAINING GROUP LIMITED",10003915]
["LIFT SCHOOLS",10033736]
["LIGHTHOUSE (TRAINING AND DEVELOPMENT) LTD",10053869]
["LINCOLNSHIRE COMMUNITY HEALTH SERVICES NHS TRUST",10056018]
["LINCOLNSHIRE COUNTY COUNCIL",10003932]
["LINDEN MANAGEMENT (UK) LIMITED",10027616]
["LITE (STOCKPORT) LIMITED",10008354]
["LITTLE LEARNERS MONTESSORI LTD",10083232]
["LIVE BETTER LOCATIONS LIMITED",10064146]
["LIVERPOOL JOHN MOORES UNIVERSITY",10003957]
["LOCOMOTIVATION LTD.",10003976]
["LOGISTICA TRAINING AND CONSULTANCY LTD",10036736]
["LOMAX TRAINING SERVICES LIMITED",10003981]
["LONDON ACADEMY FOR APPLIED TECHNOLOGY LTD",10089090]
["LONDON AMBULANCE SERVICE NHS TRUST",10042155]
["LONDON DESIGN AND ENGINEERING UTC",10057010]
["LONDON GENERAL TRANSPORT SERVICES LIMITED",10084167]
["LONDON METROPOLITAN UNIVERSITY",10004048]
["LONDON NORTH EASTERN RAILWAY LIMITED",10085306]
["LONDON SOUTH BANK UNIVERSITY",10004078]
["LONDON UNDERGROUND LIMITED",10062493]
["LONDON VESTA COLLEGE LIMITED",10024404]
["LOUGHBOROUGH UNIVERSITY",10004113]
["LOVE AND TATE LIMITED",10020380]
["LRTT LIMITED",10020604]
["LUTON BOROUGH COUNCIL",10004124]
["LYNWOOD VETS LIMITED",10055021]
["M & J GROUP (CONSTRUCTION & ROOFING) LTD",10089853]
["MAINSTREAM TRAINING LIMITED",10009491]
["MAKERS ACADEMY LIMITED",10041057]
["MANAGEMENT TRAINING & DEVELOPMENT LTD",10024659]
["MANCHESTER CITY COUNCIL",10004175]
["MANCHESTER DIGITAL LIMITED",10055091]
["MANCHESTER UNIVERSITY NHS FOUNDATION TRUST",10065854]
["MANOR GREEN SCHOOL",10018030]
["MANTRA LEARNING LIMITED",10004181]
["MARITIME + ENGINEERING COLLEGE NORTH WEST",10003748]
["MARSHALL OF CAMBRIDGE (HOLDINGS) LIMITED",10084918]
["MARTEC TRAINING LIMITED",10067528]
["MARY P'S LTD",10082565]
["MASTER CUTTERS LIMITED",10004232]
["MBKB LTD",10054216]
["MCARTHUR DEAN TRAINING LIMITED",10004257]
["MCFARLANE TELFER LIMITED",10090657]
["MEAT EAST ANGLIA TRADES (IPSWICH) LIMITED",10004140]
["MED LEARN TRAINING LIMITED",10044523]
["MERCEDES-BENZ UK LIMITED",10022856]
["MERCURI INTERNATIONAL (UK) LIMITED",10056013]
["MERCURY TRAINING SERVICES LTD",10023787]
["MERIDIAN TRUST",10053421]
["MERIT SKILLS LIMITED",10030102]
["MERSEYSIDE FIRE AND RESCUE AUTHORITY",10034301]
["METADATA LIMITED",10026165]
["METAGEDU APPRENTICESHIPS LTD",10047122]
["MICHAEL D AKERS MANAGEMENT CONSULTING",10082053]
["MICHAEL MCCORMACK",10012892]
["MICHAEL STREETE FOUNDATION",10090480]
["MIDDLESBROUGH COUNCIL",10004343]
["MIDDLESEX UNIVERSITY",10004351]
["MIDLAND GROUP TRAINING SERVICES LIMITED",10004355]
["MIKE TAYLOR",10054811]
["MILLBROOK MANAGEMENT SERVICES LIMITED",10005264]
["MILTON KEYNES COUNCIL",10004376]
["MINERAL PRODUCTS QUALIFICATIONS COUNCIL",10026268]
["MINISTRY OF DEFENCE POLICE",10088452]
["MOBIUS PARTNERS LIMITED",10083146]
["MODE TRAINING LTD",10004406]
["MOMENTUM TRAINING AND CONSULTANCY LTD",10044729]
["MONTEBELLO TRAINING LTD",10049191]
["MTC (MANUFACTURING TECHNOLOGY CENTRE) TRAINING LIMITED",10049737]
["MULTI TRADES TRAINING LTD",10081713]
["MULTIVERSE GROUP LIMITED",10055902]
["MYF TRAINING LIMITED",10032126]
["NATIONAL BUSINESS COLLEGE LIMITED",10004499]
["NATIONAL GRID ELECTRICITY DISTRIBUTION (SOUTH WEST) PLC",10007444]
["NATIONAL GRID PLC",10004512]
["NATIONAL HORSERACING COLLEGE LIMITED",10004748]
["NATIONAL STAR FOUNDATION",10004527]
["NATIONWIDE ENERGY TRAINING SERVICES LTD",10046315]
["NATS (EN ROUTE) PUBLIC LIMITED COMPANY",10049084]
["NC GROUP LTD",10064357]
["NETWORK RAIL INFRASTRUCTURE LIMITED",10013544]
["NEWCASTLE UPON TYNE CITY COUNCIL",10004601]
["NHBC SERVICES LIMITED",10016401]
["NHS ENGLAND NORTH EAST AND YORKSHIRE",10041332]
["NHTA LIMITED",10004632]
["NINE DOTS DEVELOPMENT LIMITED",10062335]
["NISHKAM CIVIC ASSOCIATION",10012442]
["NORTH BRISTOL NATIONAL HEALTH SERVICE TRUST",10025909]
["NORTH EAST AMBULANCE SERVICE NHS FOUNDATION TRUST",10046499]
["NORTH HUMBERSIDE MOTOR TRADES GROUP TRAINING ASSOCIATION",10009085]
["NORTH LANCS. TRAINING GROUP C.I.C.",10004692]
["NORTH LINCOLNSHIRE COUNCIL",10004694]
["NORTH LONDON GARAGES GTA",10009257]
["NORTH OF ENGLAND TRAINING LIMITED",10034302]
["NORTH STAFFORDSHIRE ENGINEERING GROUP TRAINING ASSOCIATION LIMITED",10028012]
["NORTH TYNESIDE METROPOLITAN BOROUGH COUNCIL",10004714]
["NORTH WEST AMBULANCE SERVICE NATIONAL HEALTH SERVICE TRUST",10021306]
["NORTH WEST TRAINING COUNCIL",10004723]
["NORTHEASTERN UNIVERSITY - LONDON",10048199]
["NORTHERN CARE ALLIANCE NHS FOUNDATION TRUST",10034346]
["NORTHERN CARE TRAINING LIMITED",10013515]
["NORTHERN POWERGRID (YORKSHIRE) PLC",10063508]
["NORTHERN REGENERATION CIC",10062447]
["NORTHERN TRAINS LIMITED",10085493]
["NORTHUMBERLAND COUNCIL",10004762]
["NORTHUMBRIA HEALTHCARE NHS FOUNDATION TRUST",10049052]
["NORTHWEST EDUCATION AND TRAINING LIMITED",10041486]
["NORTON WEBB LIMITED",10018297]
["NOTTINGHAMSHIRE COMBINED FIRE AND RESCUE AUTHORITY",10037119]
["NOTTINGHAMSHIRE TRAINING GROUP LIMITED",10000565]
["NOWSKILLS LIMITED",10040775]
["NPL MANAGEMENT LIMITED",10047973]
["NTG TRAINING LTD",10024833]
["OAKTHORPE PRIMARY SCHOOL",10045988]
["OASIS CARE AND TRAINING AGENCY (OCTA)",10032256]
["OASIS COMMUNITY LEARNING",10058190]
["OCTAVIUS LEARNING AND DEVELOPMENT LIMITED PARTNERSHIP",10092400]
["OLDHAM ENGINEERING GROUP TRAINING ASSOCIATION LIMITED (THE)",10004856]
["OPTIMUM SKILLS LIMITED",10043661]
["ORACLE TRAINING SOLUTIONS LTD",10041117]
["ORANGE MOON TRAINING LIMITED",10054833]
["ORCHARD HILL COLLEGE",10054747]
["ORTHODONTIC TEAM TRAINING LIMITED",10081890]
["OXFORD ENERGY ACADEMY LIMITED",10041773]
["OXFORD HEALTH NHS FOUNDATION TRUST",10021243]
["OXFORD PROFESSIONAL EDUCATION GROUP LIMITED",10004935]
["OXFORD UNIVERSITY HOSPITALS NHS FOUNDATION TRUST",10062065]
["P.T.P. TRAINING LIMITED",10011880]
["PARENTA TRAINING LIMITED",10021754]
["PARETO LAW LIMITED",10025697]
["PARK EDUCATION AND TRAINING CENTRE LIMITED",10054768]
["PARKDEAN RESORTS UK LIMITED",10065761]
["PARTNERS IN TRAINING (NORTH WEST) LIMITED",10056831]
["PARTNERSHIP TRAINING LIMITED",10036548]
["PEABODY TRUST",10091601]
["PENSHAW VIEW TRAINING LIMITED",10038931]
["PERFORMANCE LEARNING GROUP LTD",10052607]
["PETA LIMITED",10005064]
["PETERBOROUGH SKILLS LIMITED",10048439]
["PGL TRAINING (PLUMBING) LIMITED",10008426]
["PHOENIX4TRAINING LLP",10024054]
["PHYSICAL EDUCATION & ACTIVE KIDS LTD",10084933]
["PIER TECHNOLOGY LTD",10040417]
["PILOT IMS LIMITED",10005101]
["PLUMS LIMITED",10048792]
["PLYMOUTH ARGYLE FOOTBALL IN THE COMMUNITY TRUST",10035178]
["PLYMOUTH TRAINING AND CONSULTANCY LTD",10054814]
["PMA LTD",10061640]
["PORT OF TILBURY LONDON LIMITED",10041165]
["PORTSMOUTH CITY COUNCIL",10005157]
["POSITIVE APPROACH LIMITED",10023776]
["POTENTIAL REALISED - HR & TRAINING LIMITED",10085193]
["POULTEC TRAINING LIMITED",10005172]
["PRIMARY GOAL LTD",10054804]
["PRIME LIFE LIMITED",10041329]
["PROBUSINESS EDGE LIMITED",10089804]
["PROFESSIONAL APPRENTICESHIPS LTD",10065020]
["PROFESSIONAL DEVELOPMENT AND TRAINING LTD",10044419]
["PROFESSIONAL QUALITY MANAGEMENT SERVICES LIMITED",10043841]
["PROFESSIONAL TRAINING SOLUTIONS LIMITED",10021391]
["PROJECTING SUCCESS LTD",10082136]
["PROVEK LIMITED",10028207]
["PROVQ LIMITED",10022503]
["PUBLIC RELATIONS COMMUNICATIONS ASSOCIATION LIMITED",10046089]
["PURPLE BEARD LTD",10083150]
["QA LIMITED",10003375]
["QOMMUNICATE LTD",10032616]
["QTS-GLOBAL LTD",10036134]
["QUALIA AESTHETICS LIMITED",10054006]
["QUALITRAIN LIMITED",10027438]
["QUALITY OF CARE LIMITED",10062203]
["QUEEN MARY UNIVERSITY OF LONDON",10007775]
["RAISE THE BAR LIMITED",10025429]
["REBUS TRAINING LTD",10032658]
["RED KITE LEARNING TRUST",10054307]
["REED BUSINESS SCHOOL LIMITED",10005422]
["REED LEARNING LIMITED",10088273]
["RELIANCE PRECISION LIMITED",10064130]
["RELX (UK) LIMITED",10023129]
["RENTOKIL INITIAL (1896) LIMITED",10062059]
["REYNOLDS TRAINING SERVICES LIMITED",10032007]
["RHG CONSULT LTD",10029195]
["RICHARD HUISH COLLEGE",10089242]
["RICHARD HUISH TRUST",10060902]
["RICHMOND TRAINING ACADEMY LIMITED",10036240]
["RIPLEY ST THOMAS CHURCH OF ENGLAND ACADEMY",10033590]
["RIVERSIDE TRAINING (SPALDING) LTD",10036865]
["RIVERSIDE TRAINING LIMITED",10005488]
["RM TRAINING (UK) LIMITED",10040011]
["ROBERT BOSCH LIMITED",10045879]
["ROCHDALE TRAINING ASSOCIATION LIMITED",10005509]
["ROEHAMPTON UNIVERSITY",10007776]
["ROSEWOOD MANAGEMENT SERVICES LIMITED",10024815]
["ROYAL AIR FORCE",10033441]
["ROYAL BOROUGH OF GREENWICH",10003990]
["ROYAL DEVON UNIVERSITY HEALTHCARE NHS FOUNDATION TRUST",10024938]
["ROYAL FREE LONDON NHS FOUNDATION TRUST",10058083]
["ROYAL NAVY",10033438]
["RPC CONTAINERS LIMITED",10054802]
["RUNWAY APPRENTICESHIPS LIMITED",10049149]
["S & B AUTOMOTIVE ACADEMY LIMITED",10005599]
["S.A.M.B.",10023808]
["S.W. DURHAM TRAINING LIMITED",10006005]
["SALUTEM LIMITED",10044666]
["SANDWELL AND WEST BIRMINGHAM HOSPITALS NATIONAL HEALTH SERVICE TRUST",10010635]
["SBC TRAINING LIMITED",10033746]
["SCCU LTD",10036794]
["SCHOOL-LED DEVELOPMENT TRUST",10090839]
["SCL EDUCATION & TRAINING LIMITED",10043208]
["SCREWFIX DIRECT LIMITED",10062910]
["SE TRAINS LIMITED",10089648]
["SEAREGS TRAINING LTD",10056817]
["SECOM PLC",10062562]
["SEETEC BUSINESS TECHNOLOGY CENTRE LIMITED",10005735]
["SEMESTER: LEARNING AND DEVELOPMENT LIMITED",10048806]
["SERCO HOLDINGS LIMITED",10083445]
["SERCO LIMITED",10005752]
["SEVERN TRENT PLC",10087386]
["SEYMOUR HOUSE LTD.",10089979]
["SHE COMPLIANCY LIMITED",10047426]
["SHEARS ACADEMY LIMITED",10021585]
["SHEFFIELD CITY COUNCIL",10002244]
["SHEFFIELD HALLAM UNIVERSITY",10005790]
["SHELDRAKE TRAINING LIMITED",10063519]
["SHOWCASE TRAINING LTD",10048801]
["SIEMENS ENERGY INDUSTRIAL TURBOMACHINERY LIMITED",10005835]
["SIEMENS MOBILITY LIMITED",10085356]
["SIEMENS PUBLIC LIMITED COMPANY",10013362]
["SIGTA LIMITED",10005839]
["SIMIAN RISK MANAGEMENT LIMITED",10022567]
["SIMPLY ACADEMY LTD",10042152]
["SKERN LODGE LIMITED",10005886]
["SKILLCERT LIMITED",10061833]
["SKILLNET LIMITED",10005891]
["SKILLS EDGE TRAINING LTD",10030249]
["SKILLS FOR SECURITY LIMITED",10010523]
["SKILLS NORTH EAST LIMITED",10028094]
["SKILLS RECRUITMENT LIMITED",10019711]
["SKILLS TO GROUP LIMITED",10005277]
["SKILLWISE TRAINING UK LTD",10033209]
["SMART DENTAL ACADEMY LIMITED",10037735]
["SMART GAS TRAINING & ASSESSMENT CENTRE LIMITED",10064088]
["SOCIAL LANDLORDS CRIME AND NUISANCE GROUP",10084984]
["SOLENT UNIVERSITY, SOUTHAMPTON",10006022]
["SOLVEWAY LIMITED",10025133]
["SOMERSET COUNCIL",10005959]
["SOUTH CENTRAL AMBULANCE SERVICE NHS FOUNDATION TRUST",10047255]
["SOUTH FARNHAM EDUCATIONAL TRUST",10054050]
["SOUTH WALES AND SOUTH WEST ROOFING TRAINING GROUP",10010524]
["SOUTH WEST CONSTRUCTION ACADEMY LIMITED",10047908]
["SOUTHAMPTON ENGINEERING TRAINING ASSOCIATION LIMITED (THE)",10005760]
["SPAN TRAINING & DEVELOPMENT LIMITED",10009091]
["SPARSHATT TRUCK & VAN LIMITED",10083314]
["SPECSAVERS OPTICAL SUPERSTORES LIMITED",10042132]
["SPORTING FUTURES TRAINING (UK) LTD",10046677]
["SPORTSCAPE EDUCATION LTD",10048110]
["SPRINGBOARD SUNDERLAND TRUST",10006086]
["SPRINGFIELD TRAINING LIMITED",10054735]
["SPRINGFIELDS FUELS LIMITED",10010548]
["SR APPRENTICESHIPS LIMITED",10031146]
["SR SUPPLY CHAIN CONSULTANTS LTD",10036350]
["SSE SERVICES PLC",10023368]
["ST MARY'S UNIVERSITY, TWICKENHAM",10007843]
["ST. GEORGE'S HOSPITAL MEDICAL SCHOOL",10007782]
["STAFF SELECT LTD",10027272]
["STAFFORDSHIRE COMMISSIONER FIRE AND RESCUE AUTHORITY",10057288]
["STANFORDS TRAINING LTD",10045094]
["STAR ACADEMIES",10048788]
["STARTING OFF LIMITED",10027655]
["STEADFAST TRAINING LTD",10018942]
["STEVE WILLIS TRAINING LTD.",10006326]
["STOCKTON-ON-TEES BOROUGH COUNCIL",10006337]
["STORYY TRAINING LIMITED",10090278]
["STRAIGHT A TRAINING LIMITED",10006365]
["STUBBING COURT TRAINING LIMITED",10006387]
["SUMO DIGITAL LTD.",10087799]
["SUNDERLAND ENGINEERING TRAINING ASSOCIATION LIMITED",10006408]
["SUPERDRUG STORES PLC",10020811]
["SUPPLY CHAIN ACADEMY LIMITED",10001733]
["SURREY COUNTY COUNCIL",10006426]
["SUSSEX PARTNERSHIP NHS FOUNDATION TRUST ",10028410]
["SUTTON AND DISTRICT TRAINING LIMITED",10006438]
["SUTTON COLDFIELD TRAINING LIMITED",10023992]
["SWARM TRAINING C.I.C.",10049392]
["SWIFTOOL PRECISION ENGINEERING LIMITED",10083564]
["SYNERGY HEALTH (UK) LIMITED",10065332]
["SYSTEM PEOPLE LIMITED",10040334]
["T3 TRAINING & DEVELOPMENT LTD",10056500]
["TARMAC TRADING LIMITED",10023866]
["TDR TRAINING LIMITED",10006517]
["TECHNICAL PROFESSIONALS LIMITED",10058007]
["TEESSIDE UNIVERSITY",10007161]
["TEMP DENT DENTAL AGENCY LIMITED",10006554]
["TENDEAN LIMITED",10052473]
["TENDRING DISTRICT COUNCIL",10009095]
["TES INSTITUTE LIMITED",10035578]
["THATCHAM RESEARCH",10006571]
["THE ACADEMY OF LEADERSHIP & MANAGEMENT LTD",10087529]
["THE APPRENTICE ACADEMY LIMITED",10036578]
["THE APPRENTICESHIP COLLEGE LTD",10047111]
["THE ASHRIDGE (BONAR LAW MEMORIAL) TRUST",10008899]
["THE BEST CONNECTION GROUP LIMITED",10088194]
["THE CHIEF CONSTABLE OF GREATER MANCHESTER",10063389]
["THE CHIEF CONSTABLE OF HAMPSHIRE",10063350]
["THE CHIEF CONSTABLE OF MERSEYSIDE",10063343]
["THE CHIEF CONSTABLE OF NORTHUMBRIA",10063340]
["THE CHIEF CONSTABLE OF SOUTH YORKSHIRE",10063335]
["THE CHIEF CONSTABLE OF SURREY",10063332]
["THE CHIEF CONSTABLE OF SUSSEX",10063331]
["THE CHIEF CONSTABLE OF THAMES VALLEY",10063330]
["THE CHIEF CONSTABLE OF WEST YORKSHIRE",10063326]
["THE CODERS GUILD LTD",10058030]
["THE COLLEGES' PARTNERSHIP LIMITED",10020932]
["THE CONSTELLATION TRUST",10058237]
["THE DENBIGH ALLIANCE",10058516]
["THE DEVELOPMENT MANAGER LTD",10020884]
["THE EDUCATION AND SKILLS PARTNERSHIP LTD",10052437]
["THE EDUCATIONWISE ACADEMY LTD",10056839]
["THE ELLIOT FOUNDATION ACADEMIES TRUST",10059861]
["THE EQUESTRIAN LEARNING ACADEMY LIMITED",10034037]
["THE FERNANDES AND ROSARIO CONSULTING LIMITED",10066604]
["THE FOOTBALL ASSOCIATION PREMIER LEAGUE LIMITED",10002527]
["THE FORWARD TRUST",10029120]
["THE GO-AHEAD GROUP PLC",10062971]
["THE GROWTH COMPANY LIMITED",10004177]
["THE INSTITUTE OF REVENUES, RATING AND VALUATION",10022689]
["THE IT SKILLS MANAGEMENT COMPANY LIMITED",10042241]
["THE JCB ACADEMY",10030656]
["THE LEARNING FOUNDRY LIMITED",10000201]
["THE LINK TRAINING ACADEMY LIMITED",10042593]
["THE MANAGEMENT ACADEMY LTD",10058059]
["THE MARINE SOCIETY AND SEA CADETS",10004204]
["THE NATIONAL LOGISTICS ACADEMY LTD",10061968]
["THE NEWCASTLE UPON TYNE HOSPITALS NHS FOUNDATION TRUST",10010912]
["THE NVQ TRAINING CENTRE LIMITED",10026397]
["THE OCM GROUP LIMITED",10082027]
["THE OPEN UNIVERSITY",10007773]
["THE ORGANISATION FOR PROFESSIONALS IN REGULATORY AFFAIRS LIMITED",10032280]
["THE PIONEER SAILING TRUST",10040320]
["THE PRESS ASSOCIATION LIMITED",10024217]
["THE PRIORY FEDERATION OF ACADEMIES",10058228]
["THE PROCUREMENT ACADEMY LIMITED",10064141]
["THE RECALVI ENTERPRISE LTD",10039140]
["THE S&A TRANSFORM GROUP LIMITED",10088850]
["THE SIDE BY SIDE PARTNERSHIP LIMITED",10030265]
["THE SKILLS CENTRE LONDON LIMITED",10023042]
["THE SKILLS PARTNERSHIP LIMITED",10005894]
["THE SOCIETY OF LOCAL AUTHORITY CHIEF EXECUTIVES AND SENIOR MANAGERS (SOLACE GROUP) LTD",10062076]
["THE SPECIALISTS HUB LTD",10085751]
["THE SPENCER ACADEMIES TRUST",10058352]
["THE SQUARE METRE LIMITED",10046777]
["THE SYDNEY RUSSELL SCHOOL",10048673]
["THE TRAINING PLACE OF EXCELLENCE LIMITED",10032402]
["THE UNIVERSITY OF BATH",10007850]
["THE UNIVERSITY OF BIRMINGHAM",10006840]
["THE UNIVERSITY OF BOLTON",10006841]
["THE UNIVERSITY OF BRADFORD",10007785]
["THE UNIVERSITY OF BUCKINGHAM",10007787]
["THE UNIVERSITY OF CHICHESTER",10007137]
["THE UNIVERSITY OF CUMBRIA",10007842]
["THE UNIVERSITY OF EAST ANGLIA",10007789]
["THE UNIVERSITY OF ESSEX",10007791]
["THE UNIVERSITY OF HUDDERSFIELD",10007148]
["THE UNIVERSITY OF HULL",10007149]
["THE UNIVERSITY OF KENT",10007150]
["THE UNIVERSITY OF LANCASTER",10007768]
["THE UNIVERSITY OF LAW LIMITED",10039956]
["THE UNIVERSITY OF LEEDS",10007795]
["THE UNIVERSITY OF LEICESTER",10007796]
["THE UNIVERSITY OF LIVERPOOL",10006842]
["THE UNIVERSITY OF MANCHESTER",10007798]
["THE UNIVERSITY OF READING",10007802]
["THE UNIVERSITY OF SHEFFIELD",10007157]
["THE UNIVERSITY OF WARWICK",10007163]
["THE UNIVERSITY OF WEST LONDON",10006566]
["THE UNIVERSITY OF WESTMINSTER",10007165]
["THE WEST MIDLANDS CREATIVE ALLIANCE LIMITED",10007424]
["THE WORKING KNOWLEDGE GROUP LIMITED",10031915]
["THELIGHTBULB LTD",10003919]
["THERMAL INSULATION CONTRACTORS ASSOCIATION",10003345]
["TIME TRAINING LIMITED",10041629]
["TIME2TRAIN LTD",10041941]
["TIRO TRAINING LTD",10023538]
["TONI & GUY UK TRAINING LIMITED",10023415]
["TQ EDUCATION AND TRAINING LIMITED",10002806]
["TRADE SKILLS4U LTD",10010513]
["TRAILFINDERS LIMITED",10082272]
["TRAIN 2 TRAIN LIMITED",10033640]
["TRAIN'D UP RAILWAY RESOURCING LIMITED",10010672]
["TRAINING 2000 LIMITED",10006987]
["TRAINING ASSESSMENT & CONSULTANCY SERVICES LIMITED",10020244]
["TRAINING SERVICES 2000 LTD",10007015]
["TRAINING STRATEGIES LTD.",10027873]
["TRAINING WORKS (NW) LTD",10048848]
["TRAINPLUS LTD",10026331]
["TRANS-PLANT TRAINING LIMITED",10021850]
["TRANSPORT UK EAST MIDLANDS LIMITED",10084402]
["TRANSWORLD PUBLICATIONS SERVICES LIMITED",10005268]
["TRAVIS PERKINS PLC",10027498]
["TRENDY POOCHES TRAINING ACADEMY LIMITED",10083948]
["TRS TRAINING LIMITED",10039242]
["TTE TECHNICAL (UK) LTD.",10029768]
["TTE TRAINING LIMITED",10004589]
["TUI UK LIMITED",10004123]
["TYNE AND WEAR FIRE AND RESCUE AUTHORITY",10028200]
["TYNE NORTH TRAINING LIMITED",10007100]
["UK POWER NETWORKS (OPERATIONS) LIMITED",10046674]
["UK SKILLS ACADEMY LIMITED",10054946]
["UK TRAINING & DEVELOPMENT LIMITED",10007123]
["ULTIMA SKILLS LTD",10034050]
["UMBRELLA TRAINING AND EMPLOYMENT SOLUTIONS LIMITED",10039668]
["UNIPRES (UK) LIMITED",10048106]
["UNIQUE TRAINING SOLUTIONS LIMITED",10019736]
["UNITAS",10063062]
["UNITED CHURCH SCHOOLS TRUST",10087159]
["UNITED UTILITIES WATER LIMITED",10040525]
["UNIVERSAL SKILLS CENTRE LIMITED",10007292]
["UNIVERSAL VIBES LIMITED",10065571]
["UNIVERSITY ACADEMY 92 LIMITED",10067648]
["UNIVERSITY ACADEMY HOLBEACH",10034999]
["UNIVERSITY CENTRE QUAYSIDE LIMITED",10025197]
["UNIVERSITY COLLEGE LONDON",10007784]
["UNIVERSITY COLLEGE OF ESTATE MANAGEMENT",10008173]
["UNIVERSITY HOSPITALS OF DERBY AND BURTON NHS FOUNDATION TRUST",10084937]
["UNIVERSITY HOSPITALS OF LEICESTER NATIONAL HEALTH SERVICE TRUST",10022721]
["UNIVERSITY OF BEDFORDSHIRE",10007152]
["UNIVERSITY OF BRIGHTON",10000886]
["UNIVERSITY OF CAMBRIDGE",10007788]
["UNIVERSITY OF CENTRAL LANCASHIRE",10007141]
["UNIVERSITY OF CHESTER",10007848]
["UNIVERSITY OF DURHAM",10007143]
["UNIVERSITY OF EAST LONDON",10007144]
["UNIVERSITY OF EXETER",10007792]
["UNIVERSITY OF GLOUCESTERSHIRE",10007145]
["UNIVERSITY OF GREENWICH",10007146]
["UNIVERSITY OF HERTFORDSHIRE",10007147]
["UNIVERSITY OF KEELE",10007767]
["UNIVERSITY OF LINCOLN",10007151]
["UNIVERSITY OF NEWCASTLE UPON TYNE",10007799]
["UNIVERSITY OF NORTHAMPTON, THE",10007138]
["UNIVERSITY OF NORTHUMBRIA AT NEWCASTLE",10001282]
["UNIVERSITY OF NOTTINGHAM, THE",10007154]
["UNIVERSITY OF PLYMOUTH",10007801]
["UNIVERSITY OF PORTSMOUTH",10007155]
["UNIVERSITY OF SALFORD, THE",10007156]
["UNIVERSITY OF SOUTH WALES/PRIFYSGOL DE CYMRU",10007793]
["UNIVERSITY OF ST MARK & ST JOHN",10037449]
["UNIVERSITY OF STAFFORDSHIRE",10006299]
["UNIVERSITY OF STRATHCLYDE",10007805]
["UNIVERSITY OF SUFFOLK",10014001]
["UNIVERSITY OF SUNDERLAND",10007159]
["UNIVERSITY OF THE WEST OF ENGLAND, BRISTOL",10007164]
["UNIVERSITY OF WALES: TRINITY SAINT DAVID",10007858]
["UNIVERSITY OF WINCHESTER",10003614]
["UNIVERSITY OF WOLVERHAMPTON",10007166]
["UNIVERSITY OF WORCESTER",10007139]
["UNIVERSITY OF YORK",10007167]
["UTILITY & CONSTRUCTION TRAINING LIMITED",10022362]
["VALKYRIE SUPPORT SERVICES LTD",10026094]
["VARSITY TRAINING LIMITED",10049233]
["VELOCITY 1ST LIMITED",10047354]
["VIA EAST MIDLANDS LIMITED",10065824]
["VISION REHABILITATION TRAINING LTD",10083945]
["VISION TRAINING (NORTH EAST) LIMITED",10025700]
["VOCATIONAL TRAINING SERVICES CARE SECTOR LIMITED",10009450]
["VQ SOLUTIONS LTD",10022405]
["W S TRAINING LTD.",10007659]
["WALES ENGLAND CARE LTD",10064408]
["WALTHAM FOREST CHAMBER OF COMMERCE TRAINING TRUST LIMITED",10007320]
["WANDSWORTH LONDON BOROUGH COUNCIL",10004002]
["WARWICKSHIRE GARAGE & TRANSPORT GROUP TRAINING ASSOCIATION LIMITED",10007349]
["WATERTON ACADEMY TRUST",10060843]
["WATERTRAIN LIMITED",10030871]
["WAVERLEY BOROUGH COUNCIL",10008986]
["WEBS TRAINING LIMITED",10007375]
["WEC GROUP LIMITED",10088931]
["WEIR TRAINING LIMITED",10007377]
["WELL ASSOCIATES LIMITED",10031326]
["WESSEX WATER SERVICES LIMITED",10085202]
["WEST BERKSHIRE TRAINING CONSORTIUM",10007402]
["WEST MIDLANDS AMBULANCE SERVICE UNIVERSITY NHS FOUNDATION TRUST",10041501]
["WESTCOUNTRY SCHOOLS TRUST",10057945]
["WHITBY & DISTRICT FISHING INDUSTRY TRAINING SCHOOL LIMITED",10007477]
["WHITE POINT SOLUTIONS LTD",10085944]
["WHYY? CHANGE LIMITED",10054584]
["WINNOVATION LIMITED",10029676]
["WISER ACADEMY LIMITED",10055749]
["WMC TRAINING LTD",10038165]
["WORKFORCE TRAINING & DEVELOPMENT LTD",10027269]
["WORKPAYS LIMITED",10037289]
["WREN KITCHENS LIMITED",10091587]
["XACT CONSULTANCY AND TRAINING LTD",10029525]
["XAVIER CATHOLIC EDUCATION TRUST",10057399]
["YORK ST JOHN UNIVERSITY",10007713]
["YORKSHIRE AMBULANCE SERVICE NATIONAL HEALTH SERVICE TRUST",10012754]
["ZENITH PEOPLE LIMITED",10041127]
["BRIDGEWAY CONSULTING LIMITED",10024474]
["COMPASS SKILLS TRAINING LIMITED",10083267]
["DISCOVERY RECRUITMENT LIMITED",10063214]
["FRANHEN CONSULTANCY LTD",10068195]
["GOODWIN ENGINEERING TRAINING COMPANY LIMITED",10067871]
["KNIGHTS TRAINING ACADEMY LIMITED",10032896]
["LEARNING AND DEVELOPMENT BUREAU LTD",10047966]
["METRO BANK PLC",10056801]
["NERAMS LTD",10091272]
["ONE TO ONE SUPPORT SERVICES LIMITED",10022596]
["STAR GREENWICH EDUCATION",10056659]
["WOW HAIR ACADEMY LIMITED",10065400]
["CHALLENGE-TRG SKILLS LIMITED",10005094]
["DEVON COUNTY COUNCIL",10001951]
["DUDLEY METROPOLITAN BOROUGH COUNCIL",10002054]
["EVOLVE YOUR FUTURE LIMITED",10021427]
["FUTURES ADVICE, SKILLS AND EMPLOYMENT LIMITED",10001647]
["LOGISTICS SKILLS & CONSULTANCY LTD",10039742]
["MERTON BOROUGH COUNCIL",10003996]
["PET-XI TRAINING LIMITED",10021539]
["SUNDERLAND CITY METROPOLITAN BOROUGH COUNCIL",10006407]
["THE CONSTRUCTION SKILLS PEOPLE LTD",10030802]
["THE SKILLS NETWORK LIMITED",10029308]
["TRIAGE CENTRAL LIMITED",10024836]
["CECOS COMPUTING INTERNATIONAL LIMITED",10037364]
["NORTH NORTHAMPTONSHIRE COUNCIL",10004733]
["SUFFOLK COUNTY COUNCIL",10006399]
["THE HENLEY COLLEGE",10003011]
["ACORN TRAINING CONSULTANTS LIMITED",10000108]
["AMACSPORTS LIMITED",10000267]
["ANTREC LIMITED",10043333]
["ASPIRE SPORTING ACADEMY LTD",10032029]
["BARNSLEY METROPOLITAN BOROUGH COUNCIL",10000538]
["BLACKBURN WITH DARWEN BOROUGH COUNCIL",10000748]
["BLACKPOOL BOROUGH COUNCIL",10000755]
["BOROUGH OF TELFORD AND WREKIN",10006547]
["BRACKNELL FOREST BOROUGH COUNCIL",10000834]
["BRENT LONDON BOROUGH COUNCIL",10000863]
["BRIGHTON & HOVE CITY COUNCIL",10000883]
["BROMLEY LONDON BOROUGH COUNCIL",10003987]
["BURY METROPOLITAN BOROUGH COUNCIL",10001008]
["CAMDEN LONDON BOROUGH COUNCIL",10003988]
["CARMEL COLLEGE",10001201]
["CHESHIRE EAST COUNCIL",10024293]
["CHESHIRE WEST AND CHESTER COUNCIL",10024294]
["COUNCIL OF THE ISLES OF SCILLY",10001710]
["DAVID IRESON",10031424]
["EALING LONDON BOROUGH COUNCIL",10009206]
["EAST RIDING OF YORKSHIRE COUNCIL",10008919]
["EDEN TRAINING ACADEMY LIMITED",10056731]
["ESCALA ACADEMY LIMITED",10053340]
["GATEWAY SIXTH FORM COLLEGE",10085525]
["HACKNEY LONDON BOROUGH COUNCIL",10010792]
["HARINGEY LONDON BOROUGH COUNCIL",10002859]
["HARROW LONDON BOROUGH COUNCIL",10002910]
["HARTLEPOOL BOROUGH COUNCIL",10002916]
["HAVERING LONDON BOROUGH COUNCIL",10003993]
["HEART OF MERCIA",10064200]
["HEREFORDSHIRE COUNCIL",10003025]
["HEREWARD COLLEGE OF FURTHER EDUCATION",10003029]
["HOUNSLOW LONDON BOROUGH COUNCIL",10003165]
["HUMBER LEARNING CONSORTIUM",10003207]
["INSPIRA (01)",10001640]
["ISLE OF WIGHT COUNCIL",10003407]
["ITALIA CONTI ARTS CENTRE LIMITED",10038076]
["KNOWSLEY METROPOLITAN BOROUGH COUNCIL",10003709]
["MARTINEX LIMITED",10000994]
["NEWHAM LONDON BOROUGH COUNCIL",10003997]
["NOTTINGHAM CITY COUNCIL",10004791]
["PHX TRAINING LIMITED",10012179]
["PRIESTLEY COLLEGE",10063846]
["QUEEN MARY'S COLLEGE",10065473]
["RUTLAND COUNTY COUNCIL",10005586]
["SANDWELL METROPOLITAN BOROUGH COUNCIL",10005671]
["SKILLS MAX ACADEMY LIMITED",10037689]
["SLOUGH BOROUGH COUNCIL",10005916]
["SOUTH TYNESIDE COUNCIL",10006000]
["SOUTHAMPTON CITY COUNCIL",10006021]
["SOUTHEND CITY COUNCIL",10006029]
["STAFFORDSHIRE COUNTY COUNCIL",10006296]
["STOCKPORT METROPOLITAN BOROUGH COUNCIL",10006335]
["STOKE-ON-TRENT CITY COUNCIL",10001473]
["SWINDON BOROUGH COUNCIL",10006462]
["THE BROOKE HOUSE SIXTH FORM COLLEGE",10006813]
["THE PORTLAND TRAINING COMPANY LIMITED",10046979]
["THE TRAINING BROKERS LIMITED",10036106]
["THINK EMPLOYMENT LIMITED",10001013]
["THREE DIMENSIONAL TRAINING LIMITED",10057616]
["TLG BUSINESS SERVICES LIMITED",10045858]
["TOWER HAMLETS LONDON BOROUGH COUNCIL",10006964]
["UCKFIELD COLLEGE",10007111]
["UNIVERSITY FOR THE CREATIVE ARTS",10006427]
["WARWICKSHIRE COUNTY COUNCIL",10007348]
["WEST BERKSHIRE COUNCIL",10007398]
["WEST SUSSEX COUNTY COUNCIL",10007432]
["WESTMORLAND AND FURNESS COUNCIL",10091806]
["WILBERFORCE COLLEGE",10007503]
["WILTSHIRE COUNCIL",10007528]
["WOKING COLLEGE",10065150]
["WOKING COLLEGE (Trust)",10066132]
["WOKINGHAM COUNCIL",10007567]
["WORCESTER SIXTH FORM COLLEGE",10065366]
["WORKERS' EDUCATIONAL ASSOCIATION",10007364]
["WQE AND REGENT COLLEGE GROUP",10007671]

{"sheet":"Reasons","index":6,"n_rows":23,"n_cols":1,"rows_kept":23,"cut":false,"hidden":true,"merged":[]}
["New facility"]
["New bursary"]
["New facility and bursary"]
[]
["We only have a loans funding agreement with the ESFA. We understand we are not allowed to subcontract loans delivery"]
["We have other funding agreements with the ESFA. We did not subcontract loans delivery in 2015 to 2016 and we understand we must not begin any subcontracted loans delivery in 2016 to 2017"]
["We have other funding agreements with the ESFA. We did subcontract some/all loans delivery in 2015 to 2016 and we understand we must not enter into any new loans subcontracting relationships in 2016 to 2017."]
[]
["Yes"]
["No"]
[]
[]
[]
[]
[]
[]
[]
[]
[]
[]
[]
[]
["Total bursary requested for 2019 to 2020"]